[Event "WSTCC-65 2020"]
[Site "Prague"]
[Date "2020.03.12"]
[Round "7.2"]
[White "Maryasin, Boris"]
[Black "Giffard, Nicolas"]
[Result "1/2-1/2"]
[ECO "B82"]
[WhiteElo "2305"]
[BlackElo "2236"]
[Annotator "ChessBase"]
[PlyCount "42"]
[EventDate "2020.03.06"]
[EventType "team-tourn"]
[EventCountry "CZE"]
[SourceTitle "playchess.com"]
[Source "ChessBase"]
[SourceQuality "1"]
[TimeControl "40/5400+30:1800+30"]

1. e4 {[%emt 0:00:00]} c5 {[%emt 0:00:00]} 2. Nf3 {[%emt 0:00:04]} e6 {[%emt 0:00:00]} 3. d4 {[%emt 0:00:19]} cxd4 {[%emt 0:00:00]} 4. Nxd4 {[%emt 0:00:03]} Nf6 {[%emt 0:00:09]} 5. Nc3 {[%emt 0:00:14]} d6 {[%emt 0:00:06]} 6. f4 {[%emt 0:00:18]} Be7 {[%emt 0:03:35]} 7. Bb5+ {[%emt 0:01:12]} Bd7 {[%emt 0:01:14]} 8. e5 {[%emt 0:00:56]} dxe5 {[%emt 0:00:30]} 9. fxe5 {[%emt 0:00:16]} Nd5 {[%emt 0:00:46]} 10. Nxd5 {[%emt 0:00:43]} exd5 {[%emt 0:00:52]} 11. Bxd7+ {[%emt 0:09:24]} Qxd7 {[%emt 0:02:17]} 12. Qh5 {[%emt 0:03:54]} g6 {[%emt 0:05:25]} 13. Qe2 {[%emt 0:03:16]} O-O {[%emt 0:02:36]} 14. Bh6 {[%emt 0:08:09]} Re8 {[%emt 0:00:46]} 15. O-O-O {[%emt 0:00:22]} Bf6 {[%emt 0:07:23]} 16. Nf3 {[%emt 0:07:20]} Nc6 {[%emt 0:00:43]} 17. Qb5 {[%emt 0:01:28]} Nxe5 {[%emt 0:01:43]} 18. Qxd7 {[%emt 0:00:12]} Nxd7 {[%emt 0:00:07]} 19. Rxd5 {[%emt 0:00:09]} Nb6 {[%emt 0:00:33]} 20. Rdd1 {[%emt 0:03:26]} Na4 {[%emt 0:17:55]} 21. c3 {[%emt 0:02:32]} Re2 {[%emt 0:05:19]} 1/2-1/2

[Event "WSTCC-65 2020"]
[Site "Prague"]
[Date "2020.03.12"]
[Round "7.3"]
[White "Boudre, Jean-Pierre"]
[Black "Shevelev, Arkady"]
[Result "1/2-1/2"]
[ECO "B12"]
[WhiteElo "2263"]
[BlackElo "2278"]
[Annotator "ChessBase"]
[PlyCount "81"]
[EventDate "2020.03.06"]
[EventType "team-tourn"]
[EventCountry "CZE"]
[SourceTitle "playchess.com"]
[Source "ChessBase"]
[SourceQuality "1"]
[TimeControl "40/5400+30:1800+30"]

1. e4 {[%emt 0:00:04]} c6 {[%emt 0:00:00]} 2. d4 {[%emt 0:00:04]} d5 {[%emt 0:00:00]} 3. e5 {[%emt 0:03:01]} Bf5 {[%emt 0:00:07]} 4. h4 {[%emt 0:01:41]} h6 {[%emt 0:00:17]} 5. g4 {[%emt 0:00:08]} Bd7 {[%emt 0:00:06]} 6. Nc3 {[%emt 0:00:03]} c5 {[%emt 0:00:45]} 7. dxc5 {[%emt 0:04:09]} e6 {[%emt 0:00:33]} 8. Be3 {[%emt 0:05:35]} a6 {[%emt 0:09:10]} 9. f4 {[%emt 0:10:08]} Qc7 {[%emt 0:03:53]} 10. Nf3 {[%emt 0:01:34]} Bxc5 {[%emt 0:00:17]} 11. Bxc5 {[%emt 0:02:49]} Qxc5 {[%emt 0:00:09]} 12. Qd2 {[%emt 0:00:01]} Nc6 {[%emt 0:08:07]} 13. O-O-O {[%emt 0:00:13]} Nge7 {[%emt 0:01:15]} 14. Bd3 {[%emt 0:12:25]} O-O-O {[%emt 0:02:27]} 15. Kb1 {[%emt 0:04:44]} Kb8 {[%emt 0:00:32]} 16. g5 {[%emt 0:06:42]} hxg5 {[%emt 0:02:20]} 17. hxg5 {[%emt 0:00:47]} g6 {[%emt 0:00:38]} 18. Rh6 {[%emt 0:06:09]} Nb4 {[%emt 0:01:34]} 19. Rdh1 {[%emt 0:00:13]} Rhf8 {[%emt 0:00:10]} 20. Rh7 {[%emt 0:02:00]} Nxd3 {[%emt 0:00:29]} 21. cxd3 {[%emt 0:00:03]} Nf5 {[%emt 0:01:17]} 22. Nh4 {[%emt 0:06:27]} Qe3 {[%emt 0:02:04]} 23. Qxe3 {[%emt 0:02:30]} Nxe3 {[%emt 0:00:22]} 24. d4 {[%emt 0:01:40]} Rh8 {[%emt 0:02:41]} 25. Nf3 {[%emt 0:00:15]} Rxh7 {[%emt 0:02:53]} 26. Rxh7 {[%emt 0:00:06]} Rf8 {[%emt 0:00:12]} 27. Rh2 {[%emt 0:00:48]} Kc7 {[%emt 0:01:28]} 28. Kc1 {[%emt 0:00:49]} Kd8 {[%emt 0:00:13]} 29. Nd1 {[%emt 0:00:22]} Nf5 {[%emt 0:00:32]} 30. Kd2 {[%emt 0:05:15]} Ke7 {[%emt 0:03:17]} 31. Rh3 {[%emt 0:05:04]} Rc8 {[%emt 0:02:34]} 32. Ne3 {[%emt 0:02:39]} Nxe3 {[%emt 0:01:26]} 33. Kxe3 {[%emt 0:00:02]} Rc1 {[%emt 0:00:39]} 34. Rh2 {[%emt 0:00:31]} Ra1 {[%emt 0:01:37]} 35. a3 {[%emt 0:04:42]} Bb5 {[%emt 0:00:39]} 36. Rg2 {[%emt 0:02:23]} Rd1 {[%emt 0:00:52]} 37. Rd2 {[%emt 0:00:10]} Rc1 {[%emt 0:00:21]} 38. Kf2 {[%emt 0:02:37]} Ba4 {[%emt 0:01:48]} 39. Ne1 {[%emt 0:01:13]} Bb5 {[%emt 0:00:34]} 40. Nf3 {[%emt 0:00:00]} Ba4 {[%emt 0:00:00]} 41. Ne1 {[%emt 0:01:06]} 1/2-1/2

[Event "WSTCC-65 2020"]
[Site "Prague"]
[Date "2020.03.12"]
[Round "7.4"]
[White "Lederman, Leon"]
[Black "Canonne, Antoine"]
[Result "1/2-1/2"]
[ECO "B15"]
[WhiteElo "2234"]
[BlackElo "1917"]
[Annotator "ChessBase"]
[PlyCount "60"]
[EventDate "2020.03.06"]
[EventType "team-tourn"]
[EventCountry "CZE"]
[SourceTitle "playchess.com"]
[Source "ChessBase"]
[SourceQuality "1"]
[TimeControl "40/5400+30:1800+30"]

1. e4 {[%emt 0:00:00]} c6 {[%emt 0:00:00]} 2. d4 {[%emt 0:00:00]} d5 {[%emt 0:00:00]} 3. Nc3 {[%emt 0:00:00]} dxe4 {[%emt 0:00:01]} 4. Nxe4 {[%emt 0:00:00]} Nf6 {[%emt 0:00:10]} 5. Nxf6+ {[%emt 0:00:00]} exf6 {[%emt 0:00:20]} 6. Bc4 {[%emt 0:00:12]} Bd6 {[%emt 0:00:39]} 7. Qe2+ {[%emt 0:00:15]} Qe7 {[%emt 0:00:18]} 8. Qxe7+ {[%emt 0:00:09]} Kxe7 {[%emt 0:00:42]} 9. Ne2 {[%emt 0:00:44]} Be6 {[%emt 0:01:09]} 10. Bxe6 {[%emt 0:00:35]} fxe6 {[%emt 0:00:17]} 11. Bf4 {[%emt 0:00:09]} Re8 {[%emt 0:05:30]} 12. O-O-O {[%emt 0:00:25]} a5 {[%emt 0:03:26]} 13. Rhe1 {[%emt 0:02:51]} Na6 {[%emt 0:02:13]} 14. Bd2 {[%emt 0:06:56]} b6 {[%emt 0:04:18]} 15. a3 {[%emt 0:03:37]} Kf7 {[%emt 0:02:00]} 16. Nc3 {[%emt 0:05:44]} Ra7 {[%emt 0:09:56]} 17. Ne4 {[%emt 0:07:28]} Bf8 {[%emt 0:10:12]} 18. Bf4 {[%emt 0:02:53]} Rd7 {[%emt 0:01:17]} 19. Re3 {[%emt 0:09:27]} Red8 {[%emt 0:02:39]} 20. Red3 {[%emt 0:01:01]} b5 {[%emt 0:09:59]} 21. Be3 {[%emt 0:05:31]} Rd5 {[%emt 0:03:15]} 22. g4 {[%emt 0:07:12]} h6 {[%emt 0:03:54]} 23. h3 {[%emt 0:08:13]} a4 {[%emt 0:00:55]} 24. R1d2 {[%emt 0:06:03]} R5d7 {[%emt 0:05:01]} 25. Kb1 {[%emt 0:11:01]} Rc8 {[%emt 0:02:37]} 26. c4 {[%emt 0:04:02]} Rcd8 {[%emt 0:07:40]} 27. cxb5 {[%emt 0:04:12]} cxb5 {[%emt 0:00:15]} 28. Rc3 {[%emt 0:00:28]} Rc7 {[%emt 0:02:56]} 29. Bf4 {[%emt 0:01:52]} Rxc3 {[%emt 0:06:10]} 30. Nxc3 {[%emt 0:00:10]} b4 {[%emt 0:00:17]} 1/2-1/2

[Event "WSTCC-65 2020"]
[Site "Prague"]
[Date "2020.03.12"]
[Round "7.12"]
[White "Malmdin, Nils-Ake"]
[Black "Buchal, Stephan"]
[Result "1/2-1/2"]
[ECO "B06"]
[WhiteElo "2168"]
[BlackElo "2276"]
[Annotator "ChessBase"]
[PlyCount "47"]
[EventDate "2020.03.06"]
[EventType "team-tourn"]
[EventCountry "CZE"]
[SourceTitle "playchess.com"]
[Source "ChessBase"]
[SourceQuality "1"]
[TimeControl "40/5400+30:1800+30"]

1. e4 {[%emt 0:00:00]} d6 {[%emt 0:00:00]} 2. d4 {[%emt 0:00:11]} g6 {[%emt 0:00:02]} 3. Nc3 {[%emt 0:00:19]} Bg7 {[%emt 0:00:14]} 4. Be3 {[%emt 0:01:16]} a6 {[%emt 0:00:23]} 5. h4 {[%emt 0:00:48]} h5 {[%emt 0:03:46]} 6. Qd2 {[%emt 0:00:30]} b5 {[%emt 0:00:45]} 7. O-O-O {[%emt 0:04:19]} Bb7 {[%emt 0:02:26]} 8. f3 {[%emt 0:00:14]} Nd7 {[%emt 0:01:28]} 9. Nh3 {[%emt 0:00:16]} Rc8 {[%emt 0:04:11]} 10. Ng5 {[%emt 0:00:19]} e6 {[%emt 0:26:58]} 11. Kb1 {[%emt 0:19:14]} Ngf6 {[%emt 0:05:22]} 12. Bf4 {[%emt 0:21:44]} Qe7 {[%emt 0:03:44]} 13. Bd3 {[%emt 0:04:13]} e5 {[%emt 0:04:17]} 14. Be3 {[%emt 0:03:13]} exd4 {[%emt 0:19:27]} 15. Bxd4 {[%emt 0:00:14]} c5 {[%emt 0:03:55]} 16. Bf2 {[%emt 0:01:23]} b4 {[%emt 0:02:11]} 17. Nd5 {[%emt 0:03:20]} Nxd5 {[%emt 0:03:01]} 18. exd5 {[%emt 0:00:27]} O-O {[%emt 0:04:06]} 19. Rhe1 {[%emt 0:06:14]} Qf6 {[%emt 0:01:42]} 20. Qc1 {[%emt 0:00:17]} Nb6 {[%emt 0:01:00]} 21. Ne4 {[%emt 0:05:55]} Qd8 {[%emt 0:01:02]} 22. Qg5 {[%emt 0:03:04]} Na4 {[%emt 0:03:05]} 23. Qxd8 {[%emt 0:02:41]} Rfxd8 {[%emt 0:00:03]} 24. b3 {[%emt 0:00:41]} 1/2-1/2

[Event "WSTCC-65 2020"]
[Site "Prague"]
[Date "2020.03.12"]
[Round "7.14"]
[White "Brock, Friedemann"]
[Black "Hardicsay, Peter"]
[Result "1-0"]
[ECO "D31"]
[WhiteElo "2230"]
[BlackElo "2203"]
[Annotator "ChessBase"]
[PlyCount "53"]
[EventDate "2020.03.06"]
[EventType "team-tourn"]
[EventCountry "CZE"]
[SourceTitle "playchess.com"]
[Source "ChessBase"]
[SourceQuality "1"]
[TimeControl "40/5400+30:1800+30"]

1. d4 {[%emt 0:00:00]} d5 {[%emt 0:00:00]} 2. c4 {[%emt 0:00:00]} e6 {[%emt 0:00:08]} 3. Nc3 {[%emt 0:00:00]} c6 {[%emt 0:00:52]} 4. Nf3 {[%emt 0:00:01]} dxc4 {[%emt 0:00:49]} 5. a4 {[%emt 0:00:51]} c5 {[%emt 0:08:40]} 6. e4 {[%emt 0:05:51]} Nc6 {[%emt 0:08:08]} 7. Be3 {[%emt 0:04:19]} Nf6 {[%emt 0:16:48]} 8. Bxc4 {[%emt 0:03:02]} Ng4 {[%emt 0:09:10]} 9. d5 {[%emt 0:08:49]} Nxe3 {[%emt 0:07:06]} 10. fxe3 {[%emt 0:00:06]} exd5 {[%emt 0:01:47]} 11. exd5 {[%emt 0:01:27]} Nb4 {[%emt 0:02:43]} 12. O-O {[%emt 0:24:42]} Bd6 {[%emt 0:07:20]} 13. e4 {[%emt 0:00:52]} O-O {[%emt 0:01:04]} 14. e5 {[%emt 0:00:08]} Be7 {[%emt 0:00:01]} 15. Qd2 {[%emt 0:09:47]} Bg4 {[%emt 0:02:34]} 16. d6 {[%emt 0:00:31]} Bxf3 {[%emt 0:01:21]} 17. Rxf3 {[%emt 0:00:16]} Nc6 {[%emt 0:04:37]} 18. Rxf7 {[%emt 0:05:27]} Rxf7 {[%emt 0:03:13]} 19. Bxf7+ {[%emt 0:01:21]} Kh8 {[%emt 0:00:50]} 20. Qd5 {[%emt 0:06:42]} Nxe5 {[%emt 0:03:33]} 21. Qxe5 {[%emt 0:00:35]} Bxd6 {[%emt 0:00:18]} 22. Qh5 {[%emt 0:00:45]} Qe7 {[%emt 0:04:00]} 23. Nd5 {[%emt 0:01:24]} Qe4 {[%emt 0:01:04]} 24. Rd1 {[%emt 0:03:58]} Rf8 {[%emt 0:01:26]} 25. Nc3 {[%emt 0:01:04]} Qe3+ {[%emt 0:07:39]} 26. Kh1 {[%emt 0:00:17]} Be5 {[%emt 0:01:43]} 27. Nd5 1-0

[Event "WSTCC-65 2020"]
[Site "Prague"]
[Date "2020.03.12"]
[Round "7.15"]
[White "Dory, Jeno"]
[Black "Schoeneberg, Manfred"]
[Result "1/2-1/2"]
[ECO "C60"]
[WhiteElo "2170"]
[BlackElo "2144"]
[Annotator "ChessBase"]
[PlyCount "25"]
[EventDate "2020.03.06"]
[EventType "team-tourn"]
[EventCountry "CZE"]
[SourceTitle "playchess.com"]
[Source "ChessBase"]
[SourceQuality "1"]
[TimeControl "40/5400+30:1800+30"]

1. e4 {[%emt 0:00:00]} e5 {[%emt 0:00:05]} 2. Nf3 {[%emt 0:00:00]} Nc6 {[%emt 0:00:55]} 3. Bb5 {[%emt 0:00:20]} Nge7 {[%emt 0:01:11]} 4. O-O {[%emt 0:03:23]} g6 {[%emt 0:01:43]} 5. c3 {[%emt 0:01:35]} Bg7 {[%emt 0:01:15]} 6. d4 {[%emt 0:00:48]} exd4 {[%emt 0:00:36]} 7. cxd4 {[%emt 0:02:51]} d5 {[%emt 0:00:27]} 8. exd5 {[%emt 0:08:01]} Nxd5 {[%emt 0:00:54]} 9. Re1+ {[%emt 0:04:47]} Be6 {[%emt 0:01:59]} 10. Ne5 {[%emt 0:08:34]} O-O {[%emt 0:17:06]} 11. Nxc6 {[%emt 0:01:21]} bxc6 {[%emt 0:00:17]} 12. Bxc6 {[%emt 0:00:33]} Rb8 {[%emt 0:00:51]} 13. Nc3 {[%emt 0:09:33]} 1/2-1/2

[Event "WSTCC-65 2020"]
[Site "Prague"]
[Date "2020.03.12"]
[Round "7.16"]
[White "Heinsohn, Guenther"]
[Black "Boguszlavszkij, Jevgenyij"]
[Result "1/2-1/2"]
[ECO "B12"]
[WhiteElo "2157"]
[BlackElo "2155"]
[Annotator "ChessBase"]
[PlyCount "57"]
[EventDate "2020.03.06"]
[EventType "team-tourn"]
[EventCountry "CZE"]
[SourceTitle "playchess.com"]
[Source "ChessBase"]
[SourceQuality "1"]
[TimeControl "40/5400+30:1800+30"]

1. e4 {[%emt 0:00:00]} c6 {[%emt 0:00:00]} 2. d4 {[%emt 0:00:40]} d5 {[%emt 0:00:09]} 3. Nd2 {[%emt 0:00:10]} g6 {[%emt 0:00:17]} 4. h3 {[%emt 0:01:37]} Bg7 {[%emt 0:00:11]} 5. Ngf3 {[%emt 0:00:28]} Nh6 {[%emt 0:04:44]} 6. Bd3 {[%emt 0:01:35]} f6 {[%emt 0:00:37]} 7. O-O {[%emt 0:01:46]} O-O {[%emt 0:00:13]} 8. Re1 {[%emt 0:01:40]} Nf7 {[%emt 0:01:15]} 9. c4 {[%emt 0:02:31]} e6 {[%emt 0:04:07]} 10. b4 {[%emt 0:04:15]} Nd7 {[%emt 0:05:44]} 11. Bb2 {[%emt 0:12:52]} dxe4 {[%emt 0:13:03]} 12. Nxe4 {[%emt 0:01:38]} Re8 {[%emt 0:06:51]} 13. Nc3 {[%emt 0:18:29]} e5 {[%emt 0:02:34]} 14. Bf1 {[%emt 0:03:35]} exd4 {[%emt 0:19:37]} 15. Nxd4 {[%emt 0:03:57]} Nf8 {[%emt 0:01:42]} 16. Rxe8 {[%emt 0:02:01]} Qxe8 {[%emt 0:00:06]} 17. c5 {[%emt 0:00:35]} Bd7 {[%emt 0:03:56]} 18. Nf3 {[%emt 0:05:43]} Rd8 {[%emt 0:04:43]} 19. Qb3 {[%emt 0:00:50]} Be6 {[%emt 0:01:00]} 20. Bc4 {[%emt 0:01:06]} Bxc4 {[%emt 0:02:10]} 21. Qxc4 {[%emt 0:00:14]} Qe6 {[%emt 0:02:05]} 22. Qf1 {[%emt 0:09:19]} Ng5 {[%emt 0:01:58]} 23. Nxg5 {[%emt 0:02:03]} fxg5 24. Re1 Qf7 25. Qe2 Bd4 26. Ne4 Qxa2 27. Bxd4 Qxe2 28. Rxe2 Rxd4 29. Re1 1/2-1/2

[Event "WSTCC-65 2020"]
[Site "Prague"]
[Date "2020.03.12"]
[Round "7.19"]
[White "Salov, Sergej"]
[Black "Schulz, Michael"]
[Result "0-1"]
[ECO "C05"]
[WhiteElo "2135"]
[BlackElo "2122"]
[Annotator "ChessBase"]
[PlyCount "63"]
[EventDate "2020.03.06"]
[EventType "team-tourn"]
[EventCountry "CZE"]
[SourceTitle "playchess.com"]
[Source "ChessBase"]
[SourceQuality "1"]
[TimeControl "40/5400+30:1800+30"]

1. e4 {[%emt 0:00:00]} e6 {[%emt 0:00:00]} 2. d4 {[%emt 0:00:00]} d5 {[%emt 0:00:02]} 3. Nd2 {[%emt 0:00:21]} Nf6 {[%emt 0:00:03]} 4. e5 {[%emt 0:00:26]} Nfd7 {[%emt 0:00:04]} 5. f4 {[%emt 0:00:19]} c5 {[%emt 0:00:04]} 6. c3 {[%emt 0:00:09]} Nc6 {[%emt 0:00:04]} 7. Ndf3 {[%emt 0:00:19]} Qa5 {[%emt 0:00:13]} 8. Be3 {[%emt 0:04:04]} b5 {[%emt 0:00:47]} 9. a3 {[%emt 0:01:10]} c4 {[%emt 0:01:49]} 10. g4 {[%emt 0:00:48]} h5 {[%emt 0:00:45]} 11. gxh5 {[%emt 0:00:32]} Rxh5 {[%emt 0:02:15]} 12. Ne2 {[%emt 0:03:47]} g6 {[%emt 0:00:36]} 13. Ng3 {[%emt 0:00:12]} Rh8 {[%emt 0:00:09]} 14. h4 {[%emt 0:00:18]} Be7 {[%emt 0:05:54]} 15. h5 {[%emt 0:05:44]} gxh5 {[%emt 0:01:17]} 16. Rxh5 {[%emt 0:00:34]} Rg8 {[%emt 0:02:21]} 17. Kf2 {[%emt 0:02:21]} Nf8 {[%emt 0:01:15]} 18. Bh3 {[%emt 0:01:52]} Bd7 {[%emt 0:04:46]} 19. f5 {[%emt 0:14:48]} exf5 {[%emt 0:05:00]} 20. Nxf5 {[%emt 0:06:36]} O-O-O {[%emt 0:02:55]} 21. Ng5 {[%emt 0:09:59]} f6 {[%emt 0:17:45]} 22. Nxe7+ {[%emt 0:09:34]} Nxe7 {[%emt 0:00:14]} 23. exf6 {[%emt 0:00:22]} Nf5 {[%emt 0:03:29]} 24. Qf3 {[%emt 0:09:36]} Nxe3 {[%emt 0:01:08]} 25. Qxe3 {[%emt 0:00:36]} Rg6 {[%emt 0:02:16]} 26. f7 {[%emt 0:08:10]} Qc7 {[%emt 0:02:17]} 27. Qg3 {[%emt 0:03:30]} Bxh3 {[%emt 0:06:54]} 28. Qxh3+ {[%emt 0:01:36]} Kb7 {[%emt 0:00:30]} 29. Qf5 {[%emt 0:06:46]} Rdd6 {[%emt 0:10:06]} 30. Kg2 {[%emt 0:02:37]} Qe7 {[%emt 0:03:56]} 31. Kh1 Qe2 32. Rh2 0-1

[Event "WSTCC-65 2020"]
[Site "Prague"]
[Date "2020.03.12"]
[Round "7.20"]
[White "Sager, Bernd"]
[Black "Gruzmann, Boris"]
[Result "0-1"]
[ECO "E63"]
[WhiteElo "1920"]
[BlackElo "2206"]
[Annotator "ChessBase"]
[PlyCount "62"]
[EventDate "2020.03.06"]
[EventType "team-tourn"]
[EventCountry "CZE"]
[SourceTitle "playchess.com"]
[Source "ChessBase"]
[SourceQuality "1"]
[TimeControl "40/5400+30:1800+30"]

1. d4 {[%emt 0:00:00]} Nf6 {[%emt 0:00:00]} 2. c4 {[%emt 0:00:00]} d6 {[%emt 0:00:00]} 3. Nf3 {[%emt 0:00:00]} g6 {[%emt 0:00:08]} 4. g3 {[%emt 0:00:08]} Bg7 {[%emt 0:00:09]} 5. Bg2 {[%emt 0:00:05]} O-O {[%emt 0:00:10]} 6. O-O {[%emt 0:00:07]} Nc6 {[%emt 0:00:32]} 7. Nc3 {[%emt 0:01:13]} a6 {[%emt 0:00:18]} 8. e4 {[%emt 0:02:50]} Bg4 {[%emt 0:01:39]} 9. h3 {[%emt 0:01:38]} Bxf3 {[%emt 0:00:10]} 10. Bxf3 {[%emt 0:00:03]} e5 {[%emt 0:00:15]} 11. d5 {[%emt 0:01:36]} Nd4 {[%emt 0:00:12]} 12. Bg2 {[%emt 0:00:33]} c5 {[%emt 0:01:12]} 13. Be3 {[%emt 0:05:30]} Nd7 {[%emt 0:04:23]} 14. Qd2 {[%emt 0:09:27]} f5 {[%emt 0:06:56]} 15. f4 {[%emt 0:01:35]} exf4 {[%emt 0:01:38]} 16. Bxf4 {[%emt 0:00:41]} Ne5 {[%emt 0:03:19]} 17. b3 {[%emt 0:05:58]} b5 {[%emt 0:01:50]} 18. cxb5 {[%emt 0:02:14]} axb5 {[%emt 0:00:19]} 19. exf5 {[%emt 0:01:25]} gxf5 {[%emt 0:01:25]} 20. Ne2 {[%emt 0:03:56]} Ng6 {[%emt 0:00:35]} 21. Rad1 {[%emt 0:05:24]} Re8 {[%emt 0:42:47]} 22. Nxd4 {[%emt 0:04:27]} Bxd4+ {[%emt 0:00:14]} 23. Kh1 {[%emt 0:01:50]} Nxf4 {[%emt 0:01:00]} 24. Qxf4 {[%emt 0:03:43]} Re5 {[%emt 0:01:01]} 25. Rde1 {[%emt 0:06:38]} Qf6 {[%emt 0:08:26]} 26. Qd2 {[%emt 0:13:16]} Qg6 {[%emt 0:10:51]} 27. g4 {[%emt 0:20:45]} fxg4 {[%emt 0:01:13]} 28. Rf4 {[%emt 0:00:14]} gxh3 {[%emt 0:02:46]} 29. Bf3 {[%emt 0:01:15]} Rg5 {[%emt 0:00:50]} 30. Qd1 {[%emt 0:03:34]} Rxa2 {[%emt 0:01:47]} 31. Be4 {[%emt 0:01:47]} Rgg2 0-1

[Event "WSTCC-65 2020"]
[Site "Prague"]
[Date "2020.03.12"]
[Round "7.27"]
[White "Baumbach, Friedrich"]
[Black "Kierzek, Matthias"]
[Result "1/2-1/2"]
[ECO "D18"]
[WhiteElo "2130"]
[BlackElo "2217"]
[Annotator "ChessBase"]
[PlyCount "43"]
[EventDate "2020.03.06"]
[EventType "team-tourn"]
[EventCountry "CZE"]
[SourceTitle "playchess.com"]
[Source "ChessBase"]
[SourceQuality "1"]
[TimeControl "40/5400+30:1800+30"]

1. d4 {[%emt 0:00:00]} d5 {[%emt 0:00:00]} 2. c4 {[%emt 0:00:00]} c6 {[%emt 0:00:00]} 3. Nf3 {[%emt 0:00:01]} Nf6 {[%emt 0:00:00]} 4. Nc3 {[%emt 0:00:28]} dxc4 {[%emt 0:00:05]} 5. a4 {[%emt 0:00:12]} Bf5 {[%emt 0:00:06]} 6. e3 {[%emt 0:00:13]} e6 {[%emt 0:00:12]} 7. Bxc4 {[%emt 0:00:07]} Bb4 {[%emt 0:00:08]} 8. O-O {[%emt 0:00:12]} Nbd7 {[%emt 0:00:13]} 9. Qb3 {[%emt 0:00:16]} a5 {[%emt 0:00:22]} 10. Na2 {[%emt 0:00:23]} Bd6 {[%emt 0:00:13]} 11. Nc3 {[%emt 0:20:17]} O-O {[%emt 0:14:10]} 12. Re1 {[%emt 0:12:19]} Ne4 {[%emt 0:07:25]} 13. Nxe4 {[%emt 0:02:09]} Bxe4 {[%emt 0:00:06]} 14. Nd2 {[%emt 0:02:33]} Bd5 {[%emt 0:02:07]} 15. e4 {[%emt 0:01:18]} Bxc4 {[%emt 0:02:01]} 16. Nxc4 {[%emt 0:00:29]} Bb4 {[%emt 0:00:37]} 17. Bd2 {[%emt 0:03:14]} Bxd2 {[%emt 0:04:00]} 18. Nxd2 {[%emt 0:00:13]} Qb6 {[%emt 0:17:42]} 19. Qc3 {[%emt 0:09:30]} Rfd8 {[%emt 0:11:33]} 20. Nc4 {[%emt 0:11:46]} Qa7 {[%emt 0:04:21]} 21. Red1 {[%emt 0:04:13]} Nf6 {[%emt 0:03:53]} 22. Qe3 {[%emt 0:09:13]} 1/2-1/2

[Event "WSTCC-65 2020"]
[Site "Prague"]
[Date "2020.03.12"]
[Round "7.28"]
[White "Herbrechtsmeier, Christof"]
[Black "Walther, Hans-Wolfgang"]
[Result "1/2-1/2"]
[ECO "C53"]
[WhiteElo "2177"]
[BlackElo "2111"]
[Annotator "ChessBase"]
[PlyCount "81"]
[EventDate "2020.03.06"]
[EventType "team-tourn"]
[EventCountry "CZE"]
[SourceTitle "playchess.com"]
[Source "ChessBase"]
[SourceQuality "1"]
[TimeControl "40/5400+30:1800+30"]

1. e4 {[%emt 0:00:00]} e5 {[%emt 0:00:00]} 2. Nf3 {[%emt 0:00:00]} Nc6 {[%emt 0:00:00]} 3. Bc4 {[%emt 0:00:00]} Bc5 {[%emt 0:00:00]} 4. c3 {[%emt 0:00:04]} Qe7 {[%emt 0:00:14]} 5. d4 {[%emt 0:00:08]} Bb6 {[%emt 0:00:06]} 6. Bg5 {[%emt 0:00:13]} Nf6 {[%emt 0:00:47]} 7. d5 {[%emt 0:02:55]} Nb8 {[%emt 0:37:48]} 8. d6 {[%emt 0:00:38]} cxd6 {[%emt 0:02:28]} 9. Na3 {[%emt 0:00:53]} d5 {[%emt 0:08:14]} 10. Bxd5 {[%emt 0:00:45]} h6 {[%emt 0:02:45]} 11. Bxf6 {[%emt 0:00:57]} Qxf6 {[%emt 0:00:09]} 12. Bb3 {[%emt 0:01:26]} O-O {[%emt 0:01:35]} 13. Nc4 {[%emt 0:00:10]} Bc7 {[%emt 0:06:05]} 14. Ne3 {[%emt 0:01:07]} d6 {[%emt 0:01:11]} 15. Nd5 {[%emt 0:00:24]} Qd8 {[%emt 0:00:02]} 16. Qd3 {[%emt 0:01:29]} Na6 {[%emt 0:02:17]} 17. Qe3 {[%emt 0:04:28]} Nc5 {[%emt 0:04:48]} 18. Bc2 {[%emt 0:03:54]} Be6 {[%emt 0:08:54]} 19. O-O-O {[%emt 0:00:47]} b5 {[%emt 0:01:51]} 20. Nxe5 {[%emt 0:07:18]} Bxd5 {[%emt 0:00:30]} 21. Rxd5 {[%emt 0:00:11]} Qe7 {[%emt 0:07:41]} 22. Nc6 {[%emt 0:02:44]} Qh4 {[%emt 0:02:24]} 23. Qg3 {[%emt 0:05:15]} Qxg3 {[%emt 0:00:46]} 24. hxg3 {[%emt 0:00:14]} Rfe8 {[%emt 0:00:19]} 25. f3 {[%emt 0:00:19]} a6 {[%emt 0:00:26]} 26. Nd4 {[%emt 0:02:06]} Re5 {[%emt 0:01:30]} 27. Rxe5 {[%emt 0:01:22]} dxe5 {[%emt 0:00:01]} 28. Nc6 {[%emt 0:00:39]} Kf8 {[%emt 0:00:12]} 29. Rd1 {[%emt 0:00:19]} Ke8 {[%emt 0:00:54]} 30. Rd5 {[%emt 0:06:06]} Nd7 {[%emt 0:00:07]} 31. Bb3 {[%emt 0:01:01]} f6 {[%emt 0:00:26]} 32. Rd1 {[%emt 0:00:38]} Nb6 {[%emt 0:01:21]} 33. Be6 {[%emt 0:01:32]} a5 {[%emt 0:00:31]} 34. a3 {[%emt 0:02:28]} Ra6 {[%emt 0:00:30]} 35. Bf5 {[%emt 0:09:36]} Nc4 {[%emt 0:01:49]} 36. Bg6+ {[%emt 0:08:22]} Kf8 {[%emt 0:00:01]} 37. Nd8 {[%emt 0:01:08]} Ke7 {[%emt 0:02:12]} 38. Nb7 {[%emt 0:03:40]} Rc6 {[%emt 0:05:21]} 39. Bf5 {[%emt 0:15:39]} Nd6 {[%emt 0:00:44]} 40. Nxd6 {[%emt 0:00:00]} Rxd6 {[%emt 0:00:00]} 41. Rxd6 1/2-1/2